[Event "Titled Tuesday Blitz May 9 Late 2023"]
[White "TimGrutter03"]
[Black "Remizov, Yaroslav"]
[BlackFideId "34134015"]
[WhiteElo "2620"]
[BlackElo "2400"]
[Result "0-1"]
[Round "07"]
[TimeControl "180+2"]
[Date "2023.05.09"]
[WhiteClock "0:00:00"]
[BlackClock "0:00:19"]

1. d4 {[%clk 0:03:00]}  Nf6 {[%clk 0:02:59]} 2. c4 {[%clk 0:02:57]}  e6 {[%clk 0:02:59]} 3. g3 {[%clk 0:02:57]}  c5 {[%clk 0:02:59]} 4. d5 {[%clk 0:02:54]}  exd5 {[%clk 0:02:56]} 5. cxd5 {[%clk 0:02:55]}  g6 {[%clk 0:02:56]} 6. Bg2 {[%clk 0:02:54]}  Bg7 {[%clk 0:02:56]} 7. Nf3 {[%clk 0:02:54]}  d6 {[%clk 0:02:56]} 8. O-O {[%clk 0:02:54]}  O-O {[%clk 0:02:57]} 9. Nc3 {[%clk 0:02:53]}  Re8 {[%clk 0:02:57]} 10. Nd2 {[%clk 0:02:52]}  a6 {[%clk 0:02:55]} 11. a4 {[%clk 0:02:52]}  Nbd7 {[%clk 0:02:54]} 12. Nc4 {[%clk 0:02:50]}  Ne5 {[%clk 0:02:54]} 13. Nxe5 {[%clk 0:02:50]}  Rxe5 {[%clk 0:02:53]} 14. Bf4 {[%clk 0:02:45]}  Re8 {[%clk 0:02:49]} 15. e4 {[%clk 0:02:30]}  Ng4 {[%clk 0:02:35]} 16. Qb3 {[%clk 0:02:12]}  Ne5 {[%clk 0:02:34]} 17. a5 {[%clk 0:02:03]}  Rb8 {[%clk 0:02:22]} 18. Na4 {[%clk 0:01:45]}  Qxa5 {[%clk 0:02:20]} 19. Nb6 {[%clk 0:01:45]}  Qb5 {[%clk 0:02:19]} 20. Qxb5 {[%clk 0:01:45]}  axb5 {[%clk 0:02:19]} 21. Ra7 {[%clk 0:01:28]}  h6 {[%clk 0:02:07]} 22. h4 {[%clk 0:01:27]}  Rd8 {[%clk 0:01:58]} 23. b4 {[%clk 0:00:54]}  c4 {[%clk 0:01:44]} 24. Ra5 {[%clk 0:00:50]}  Nd3 {[%clk 0:01:43]} 25. Rxb5 {[%clk 0:00:40]}  c3 {[%clk 0:01:40]} 26. Rd1 {[%clk 0:00:24]}  Nxf4 {[%clk 0:01:31]} 27. gxf4 {[%clk 0:00:25]}  Bg4 {[%clk 0:01:04]} 28. f3 {[%clk 0:00:24]}  Bh5 {[%clk 0:00:57]} 29. Kf2 {[%clk 0:00:06]}  f5 {[%clk 0:00:51]} 30. exf5 {[%clk 0:00:03]}  gxf5 {[%clk 0:00:51]} 31. Bh3 {[%clk 0:00:03]}  Be8 {[%clk 0:00:44]} 32. Ra5 {[%clk 0:00:03]}  c2 {[%clk 0:00:45]} 33. Rc1 {[%clk 0:00:03]}  Bd4+ {[%clk 0:00:45]} 34. Ke2 {[%clk 0:00:02]}  Bxb6 {[%clk 0:00:45]} 35. Ra2 {[%clk 0:00:03]}  Bb5+ {[%clk 0:00:39]} 36. Kd2 {[%clk 0:00:03]}  Re8 {[%clk 0:00:40]} 37. Rcxc2 {[%clk 0:00:02]}  Be3+ {[%clk 0:00:37]} 38. Kc3 {[%clk 0:00:01]}  Bxf4 {[%clk 0:00:35]} 39. Bxf5 {[%clk 0:00:01]}  Re3+ {[%clk 0:00:35]} 40. Kb2 {[%clk 0:00:01]}  Be5+ {[%clk 0:00:35]} 41. Kc1 {[%clk 0:00:01]}  Rxf3 {[%clk 0:00:35]} 42. Be6+ {[%clk 0:00:02]}  Kh8 {[%clk 0:00:28]} 43. Rf2 {[%clk 0:00:03]}  Rc3+ {[%clk 0:00:21]} 44. Kd2 {[%clk 0:00:03]}  Rd3+ {[%clk 0:00:19]} 45. Ke1 {[%clk 0:00:00]}  Rd4 {[%clk 0:00:19]} 0-1


[Site "https://www.chess.com"]

[Event "Titled Tuesday Blitz May 9 Late 2023"]
[White "Tanenbaum, Zachary"]
[Black "Kourkoulos-Arditis, Stamatis"]
[WhiteFideId "2060850"]
[BlackFideId "4221990"]
[WhiteElo "2175"]
[BlackElo "2400"]
[Result "0-1"]
[Round "07"]
[TimeControl "180+2"]
[Date "2023.05.09"]
[WhiteClock "0:00:00"]
[BlackClock "0:00:13"]

1. e4 {[%clk 0:02:53]}  c5 {[%clk 0:03:00]} 2. Nf3 {[%clk 0:02:53]}  e6 {[%clk 0:03:00]} 3. d4 {[%clk 0:02:53]}  cxd4 {[%clk 0:03:01]} 4. Nxd4 {[%clk 0:02:54]}  Nf6 {[%clk 0:03:02]} 5. Nc3 {[%clk 0:02:54]}  d6 {[%clk 0:03:02]} 6. Be3 {[%clk 0:02:52]}  Nc6 {[%clk 0:03:01]} 7. f3 {[%clk 0:02:51]}  a6 {[%clk 0:02:50]} 8. Qd2 {[%clk 0:02:50]}  Bd7 {[%clk 0:02:49]} 9. O-O-O {[%clk 0:02:49]}  Rc8 {[%clk 0:02:49]} 10. g4 {[%clk 0:02:48]}  b5 {[%clk 0:02:43]} 11. g5 {[%clk 0:02:43]}  Nh5 {[%clk 0:02:42]} 12. f4 {[%clk 0:02:41]}  g6 {[%clk 0:02:35]} 13. f5 {[%clk 0:02:36]}  b4 {[%clk 0:02:26]} 14. Nce2 {[%clk 0:02:35]}  Nxd4 {[%clk 0:02:03]} 15. Nxd4 {[%clk 0:02:32]}  e5 {[%clk 0:02:03]} 16. Nf3 {[%clk 0:01:26]}  Qa5 {[%clk 0:01:51]} 17. Kb1 {[%clk 0:01:25]}  gxf5 {[%clk 0:01:39]} 18. Bh3 {[%clk 0:01:14]}  Be6 {[%clk 0:01:31]} 19. b3 {[%clk 0:01:12]}  f4 {[%clk 0:01:16]} 20. Bxe6 {[%clk 0:01:08]}  fxe6 {[%clk 0:01:17]} 21. Ba7 {[%clk 0:00:53]}  Qc7 {[%clk 0:01:04]} 22. Qf2 {[%clk 0:00:35]}  Be7 {[%clk 0:01:00]} 23. Bb6 {[%clk 0:00:26]}  Qc6 {[%clk 0:01:00]} 24. Rhe1 {[%clk 0:00:24]}  O-O {[%clk 0:00:59]} 25. Rd2 {[%clk 0:00:21]}  Rf7 {[%clk 0:00:50]} 26. Qh4 {[%clk 0:00:21]}  Ng7 {[%clk 0:00:35]} 27. Bf2 {[%clk 0:00:19]}  a5 {[%clk 0:00:28]} 28. Qg4 {[%clk 0:00:19]}  a4 {[%clk 0:00:27]} 29. h4 {[%clk 0:00:18]}  a3 {[%clk 0:00:27]} 30. c4 {[%clk 0:00:13]}  bxc3 {[%clk 0:00:25]} 31. Rc2 {[%clk 0:00:14]}  Rb8 {[%clk 0:00:17]} 32. h5 {[%clk 0:00:13]}  Qc4 {[%clk 0:00:16]} 33. g6 {[%clk 0:00:10]}  hxg6 {[%clk 0:00:15]} 34. hxg6 {[%clk 0:00:10]}  Rf6 {[%clk 0:00:15]} 35. Qg5 {[%clk 0:00:10]}  Rxb3+ {[%clk 0:00:14]} 36. axb3 {[%clk 0:00:10]}  Qxb3+ {[%clk 0:00:15]} 37. Kc1 {[%clk 0:00:08]}  a2 {[%clk 0:00:16]} 38. Rxa2 {[%clk 0:00:08]}  Qxa2 {[%clk 0:00:16]} 39. Kd1 {[%clk 0:00:05]}  Qb2 {[%clk 0:00:13]} 40. Nd4 {[%clk 0:00:00]}  exd4 {[%clk 0:00:13]} 0-1


[Site "https://www.chess.com"]

[Event "Titled Tuesday Blitz May 9 Late 2023"]
[White "Rorrer, Grayson"]
[Black "MKlose11"]
[WhiteFideId "30944996"]
[WhiteElo "2200"]
[BlackElo "2608"]
[Result "1-0"]
[Round "07"]
[TimeControl "180+2"]
[Date "2023.05.09"]
[WhiteClock "0:00:11"]
[BlackClock "0:00:24"]

1. d4 {[%clk 0:03:00]}  Nf6 {[%clk 0:02:58]} 2. Nc3 {[%clk 0:03:01]}  d5 {[%clk 0:02:54]} 3. Bf4 {[%clk 0:03:00]}  c6 {[%clk 0:02:53]} 4. e3 {[%clk 0:02:58]}  Bf5 {[%clk 0:02:50]} 5. Nf3 {[%clk 0:02:58]}  h6 {[%clk 0:02:50]} 6. Bd3 {[%clk 0:02:58]}  Bxd3 {[%clk 0:02:50]} 7. Qxd3 {[%clk 0:02:59]}  Nh5 {[%clk 0:02:45]} 8. Be5 {[%clk 0:02:58]}  Nd7 {[%clk 0:02:45]} 9. O-O-O {[%clk 0:02:37]}  Nhf6 {[%clk 0:02:43]} 10. Rhe1 {[%clk 0:02:32]}  e6 {[%clk 0:02:40]} 11. h3 {[%clk 0:02:27]}  Nxe5 {[%clk 0:02:31]} 12. Nxe5 {[%clk 0:02:24]}  Bd6 {[%clk 0:02:26]} 13. f4 {[%clk 0:02:21]}  b5 {[%clk 0:02:22]} 14. Nxc6 {[%clk 0:02:17]}  Qb6 {[%clk 0:02:21]} 15. Qxb5 {[%clk 0:02:16]}  O-O {[%clk 0:02:14]} 16. Qxb6 {[%clk 0:02:12]}  axb6 {[%clk 0:02:15]} 17. Nb5 {[%clk 0:01:47]}  Ne4 {[%clk 0:01:57]} 18. Nxd6 {[%clk 0:01:47]}  Nxd6 {[%clk 0:01:56]} 19. a3 {[%clk 0:01:40]}  f6 {[%clk 0:01:47]} 20. Kb1 {[%clk 0:01:37]}  Kf7 {[%clk 0:01:46]} 21. Nb4 {[%clk 0:01:29]}  g5 {[%clk 0:01:43]} 22. Nd3 {[%clk 0:01:24]}  Rg8 {[%clk 0:01:37]} 23. g4 {[%clk 0:01:18]}  Ne4 {[%clk 0:01:35]} 24. Rf1 {[%clk 0:01:14]}  Ke7 {[%clk 0:01:35]} 25. Ka2 {[%clk 0:01:11]}  Rh8 {[%clk 0:01:32]} 26. f5 {[%clk 0:00:48]}  h5 {[%clk 0:01:28]} 27. fxe6 {[%clk 0:00:48]}  hxg4 {[%clk 0:01:27]} 28. hxg4 {[%clk 0:00:47]}  Rh4 {[%clk 0:01:22]} 29. Rg1 {[%clk 0:00:21]}  Rh2 {[%clk 0:01:19]} 30. Kb3 {[%clk 0:00:20]}  Nd2+ {[%clk 0:01:09]} 31. Ka2 {[%clk 0:00:18]}  Ne4 {[%clk 0:01:01]} 32. Rc1 {[%clk 0:00:16]}  Rh3 {[%clk 0:01:00]} 33. Rce1 {[%clk 0:00:15]}  Rh2 {[%clk 0:01:00]} 34. Kb1 {[%clk 0:00:09]}  Kxe6 {[%clk 0:00:59]} 35. Nb4 {[%clk 0:00:08]}  Rah8 {[%clk 0:00:57]} 36. Ka2 {[%clk 0:00:06]}  Rd2 {[%clk 0:00:54]} 37. Rh1 {[%clk 0:00:05]}  Rxh1 {[%clk 0:00:52]} 38. Rxh1 {[%clk 0:00:06]}  Rg2 {[%clk 0:00:53]} 39. Rh8 {[%clk 0:00:04]}  Rxg4 {[%clk 0:00:50]} 40. Re8+ {[%clk 0:00:05]}  Kd7 {[%clk 0:00:45]} 41. Rb8 {[%clk 0:00:05]}  Kc7 {[%clk 0:00:42]} 42. Rf8 {[%clk 0:00:04]}  Kd6 {[%clk 0:00:36]} 43. Rd8+ {[%clk 0:00:04]}  Ke7 {[%clk 0:00:32]} 44. Rb8 {[%clk 0:00:04]}  Rh4 {[%clk 0:00:20]} 45. Rxb6 {[%clk 0:00:02]}  g4 {[%clk 0:00:19]} 46. Nxd5+ {[%clk 0:00:03]}  Kf7 {[%clk 0:00:19]} 47. Rb7+ {[%clk 0:00:02]}  Kf8 {[%clk 0:00:20]} 48. Nf4 {[%clk 0:00:02]}  g3 {[%clk 0:00:20]} 49. Ng6+ {[%clk 0:00:03]}  Ke8 {[%clk 0:00:17]} 50. Nxh4 {[%clk 0:00:03]}  g2 {[%clk 0:00:14]} 51. Nxg2 {[%clk 0:00:03]}  Nc3+ {[%clk 0:00:14]} 52. bxc3 {[%clk 0:00:03]}  f5 {[%clk 0:00:15]} 53. Nf4 {[%clk 0:00:03]}  Kd8 {[%clk 0:00:16]} 54. Rf7 {[%clk 0:00:03]}  Kc8 {[%clk 0:00:17]} 55. Rxf5 {[%clk 0:00:04]}  Kd8 {[%clk 0:00:18]} 56. Re5 {[%clk 0:00:05]}  Kd7 {[%clk 0:00:18]} 57. a4 {[%clk 0:00:06]}  Kc7 {[%clk 0:00:19]} 58. a5 {[%clk 0:00:07]}  Kb7 {[%clk 0:00:19]} 59. Kb3 {[%clk 0:00:08]}  Ka6 {[%clk 0:00:20]} 60. Kb4 {[%clk 0:00:08]}  Ka7 {[%clk 0:00:21]} 61. c4 {[%clk 0:00:09]}  Kb7 {[%clk 0:00:21]} 62. Kb5 {[%clk 0:00:10]}  Ka7 {[%clk 0:00:22]} 63. Re7+ {[%clk 0:00:10]}  Kb8 {[%clk 0:00:23]} 64. Kb6 {[%clk 0:00:11]}  Ka8 {[%clk 0:00:24]} 65. Re8# {[%clk 0:00:11]} 1-0


[Site "https://www.chess.com"]

[Event "Titled Tuesday Blitz May 9 Late 2023"]
[White "Komov, Roman"]
[Black "Bryakin, Mikhail"]
[WhiteFideId "24175714"]
[BlackFideId "4165314"]
[WhiteElo "2189"]
[BlackElo "2467"]
[Result "0-1"]
[Round "07"]
[TimeControl "180+2"]
[Date "2023.05.09"]
[WhiteClock "0:00:00"]
[BlackClock "0:01:01"]

1. e4 {[%clk 0:02:58]}  Nf6 {[%clk 0:02:52]} 2. e5 {[%clk 0:02:56]}  Nd5 {[%clk 0:02:49]} 3. d4 {[%clk 0:02:55]}  d6 {[%clk 0:02:46]} 4. c4 {[%clk 0:02:56]}  Nb6 {[%clk 0:02:47]} 5. f4 {[%clk 0:02:57]}  g5 {[%clk 0:02:45]} 6. exd6 {[%clk 0:02:48]}  Qxd6 {[%clk 0:02:42]} 7. fxg5 {[%clk 0:02:35]}  Bg7 {[%clk 0:02:39]} 8. Nf3 {[%clk 0:02:32]}  Bg4 {[%clk 0:02:37]} 9. c5 {[%clk 0:02:28]}  Qe6+ {[%clk 0:02:37]} 10. Be2 {[%clk 0:02:29]}  Bxf3 {[%clk 0:02:31]} 11. gxf3 {[%clk 0:02:29]}  Nd5 {[%clk 0:02:31]} 12. Nc3 {[%clk 0:02:18]}  Nc6 {[%clk 0:02:28]} 13. Nxd5 {[%clk 0:02:02]}  Qxd5 {[%clk 0:02:29]} 14. Be3 {[%clk 0:01:57]}  Bxd4 {[%clk 0:02:18]} 15. Bxd4 {[%clk 0:01:53]}  Nxd4 {[%clk 0:02:15]} 16. Qd3 {[%clk 0:01:48]}  O-O-O {[%clk 0:02:12]} 17. O-O-O {[%clk 0:01:44]}  Qxc5+ {[%clk 0:02:12]} 18. Kb1 {[%clk 0:01:44]}  Nxe2 {[%clk 0:02:05]} 19. Qxe2 {[%clk 0:01:45]}  Qf5+ {[%clk 0:02:06]} 20. Ka1 {[%clk 0:01:44]}  Qxg5 {[%clk 0:02:04]} 21. Rhg1 {[%clk 0:01:44]}  Qf6 {[%clk 0:02:03]} 22. a3 {[%clk 0:01:41]}  h6 {[%clk 0:02:02]} 23. Qe4 {[%clk 0:01:40]}  c6 {[%clk 0:01:55]} 24. f4 {[%clk 0:01:37]}  Rxd1+ {[%clk 0:01:53]} 25. Rxd1 {[%clk 0:01:38]}  Rd8 {[%clk 0:01:53]} 26. Rxd8+ {[%clk 0:01:31]}  Kxd8 {[%clk 0:01:54]} 27. f5 {[%clk 0:01:31]}  Qd6 {[%clk 0:01:52]} 28. Qe3 {[%clk 0:01:30]}  b6 {[%clk 0:01:44]} 29. Qf2 {[%clk 0:01:27]}  Kc7 {[%clk 0:01:42]} 30. h4 {[%clk 0:01:25]}  a5 {[%clk 0:01:40]} 31. Ka2 {[%clk 0:00:19]}  a4 {[%clk 0:01:39]} 32. Ka1 {[%clk 0:00:17]}  h5 {[%clk 0:01:38]} 33. Qe2 {[%clk 0:00:14]}  b5 {[%clk 0:01:26]} 34. Qxh5 {[%clk 0:00:13]}  Qd5 {[%clk 0:01:26]} 35. Qe2 {[%clk 0:00:11]}  Kd6 {[%clk 0:01:23]} 36. Qf2 {[%clk 0:00:10]}  c5 {[%clk 0:01:19]} 37. Qf4+ {[%clk 0:00:10]}  Qe5 {[%clk 0:01:19]} 38. Qd2+ {[%clk 0:00:09]}  Qd4 {[%clk 0:01:19]} 39. Qa5 {[%clk 0:00:08]}  Qd1+ {[%clk 0:01:15]} 40. Ka2 {[%clk 0:00:07]}  Qb3+ {[%clk 0:01:16]} 41. Ka1 {[%clk 0:00:07]}  Ke5 {[%clk 0:01:13]} 42. Qc7+ {[%clk 0:00:06]}  Kf6 {[%clk 0:01:14]} 43. Qc6+ {[%clk 0:00:04]}  Kxf5 {[%clk 0:01:07]} 44. Qxc5+ {[%clk 0:00:04]}  e5 {[%clk 0:01:07]} 45. Qf2+ {[%clk 0:00:05]}  Ke6 {[%clk 0:01:07]} 46. h5 {[%clk 0:00:04]}  Qd1+ {[%clk 0:01:06]} 47. Ka2 {[%clk 0:00:05]}  Qxh5 {[%clk 0:01:07]} 48. Qb6+ {[%clk 0:00:05]}  Kf5 {[%clk 0:01:07]} 49. Qxb5 {[%clk 0:00:06]}  Qh4 {[%clk 0:01:05]} 50. Qd7+ {[%clk 0:00:06]}  Kg6 {[%clk 0:01:04]} 51. Qd3+ {[%clk 0:00:05]}  f5 {[%clk 0:01:02]} 52. Qd6+ {[%clk 0:00:05]}  Qf6 {[%clk 0:01:03]} 53. Qd2 {[%clk 0:00:05]}  Qe6+ {[%clk 0:01:02]} 54. Ka1 {[%clk 0:00:04]}  e4 {[%clk 0:01:01]} 55. Qg2+ {[%clk 0:00:00]}  Kf7 {[%clk 0:01:01]} 0-1


[Site "https://www.chess.com"]

[Event "Titled Tuesday Blitz May 9 Late 2023"]
[White "Vakhlamov, Igor L."]
[Black "Mortazavi, Ali"]
[WhiteFideId "24126748"]
[BlackFideId "401323"]
[WhiteElo "2407"]
[BlackElo "2339"]
[Result "0-1"]
[Round "07"]
[TimeControl "180+2"]
[Date "2023.05.09"]
[WhiteClock "0:00:00"]
[BlackClock "0:00:07"]

1. e4 {[%clk 0:03:00]}  c6 {[%clk 0:02:59]} 2. d4 {[%clk 0:03:00]}  d5 {[%clk 0:03:00]} 3. exd5 {[%clk 0:03:00]}  cxd5 {[%clk 0:03:00]} 4. c4 {[%clk 0:03:01]}  Nf6 {[%clk 0:02:59]} 5. Nc3 {[%clk 0:03:01]}  g6 {[%clk 0:03:00]} 6. cxd5 {[%clk 0:03:00]}  Nxd5 {[%clk 0:03:00]} 7. Qb3 {[%clk 0:03:00]}  Nb6 {[%clk 0:02:59]} 8. Bb5+ {[%clk 0:03:00]}  N8d7 {[%clk 0:02:45]} 9. Nf3 {[%clk 0:03:00]}  Bg7 {[%clk 0:02:45]} 10. a4 {[%clk 0:02:57]}  a5 {[%clk 0:02:26]} 11. O-O {[%clk 0:02:54]}  O-O {[%clk 0:02:26]} 12. Re1 {[%clk 0:02:51]}  Nf6 {[%clk 0:02:26]} 13. h3 {[%clk 0:02:50]}  Qd6 {[%clk 0:02:13]} 14. Bg5 {[%clk 0:02:46]}  Bf5 {[%clk 0:02:09]} 15. Bxf6 {[%clk 0:02:20]}  Bxf6 {[%clk 0:02:08]} 16. Ne4 {[%clk 0:02:21]}  Bxe4 {[%clk 0:01:59]} 17. Rxe4 {[%clk 0:02:22]}  e6 {[%clk 0:01:55]} 18. Rae1 {[%clk 0:02:20]}  Rac8 {[%clk 0:01:42]} 19. h4 {[%clk 0:02:12]}  Qb4 {[%clk 0:01:32]} 20. Qe3 {[%clk 0:02:03]}  Nd5 {[%clk 0:01:24]} 21. Qe2 {[%clk 0:02:00]}  Qb3 {[%clk 0:01:11]} 22. Ne5 {[%clk 0:01:16]}  Bxe5 {[%clk 0:01:06]} 23. dxe5 {[%clk 0:01:17]}  Rc2 {[%clk 0:01:04]} 24. Qf3 {[%clk 0:01:17]}  Qxf3 {[%clk 0:01:00]} 25. gxf3 {[%clk 0:01:14]}  Rfc8 {[%clk 0:00:48]} 26. b3 {[%clk 0:01:11]}  R8c3 {[%clk 0:00:45]} 27. Bc4 {[%clk 0:01:04]}  Rxf3 {[%clk 0:00:40]} 28. R4e2 {[%clk 0:01:02]}  Rxe2 {[%clk 0:00:36]} 29. Rxe2 {[%clk 0:01:03]}  Rf4 {[%clk 0:00:22]} 30. Rd2 {[%clk 0:01:03]}  Rxh4 {[%clk 0:00:19]} 31. Bxd5 {[%clk 0:01:03]}  exd5 {[%clk 0:00:20]} 32. Rxd5 {[%clk 0:01:03]}  Rb4 {[%clk 0:00:21]} 33. Rxa5 {[%clk 0:01:04]}  Rxb3 {[%clk 0:00:20]} 34. Kg2 {[%clk 0:01:01]}  h5 {[%clk 0:00:20]} 35. f4 {[%clk 0:00:59]}  Kg7 {[%clk 0:00:20]} 36. Ra8 {[%clk 0:00:57]}  h4 {[%clk 0:00:18]} 37. a5 {[%clk 0:00:51]}  Rg3+ {[%clk 0:00:18]} 38. Kf2 {[%clk 0:00:50]}  Rg4 {[%clk 0:00:17]} 39. Kf3 {[%clk 0:00:50]}  Rg3+ {[%clk 0:00:17]} 40. Kf2 {[%clk 0:00:50]}  Ra3 {[%clk 0:00:17]} 41. Kg2 {[%clk 0:00:50]}  g5 {[%clk 0:00:15]} 42. f5 {[%clk 0:00:48]}  g4 {[%clk 0:00:15]} 43. f6+ {[%clk 0:00:16]}  Kg6 {[%clk 0:00:15]} 44. Rg8+ {[%clk 0:00:17]}  Kf5 {[%clk 0:00:15]} 45. Rg7 {[%clk 0:00:17]}  h3+ {[%clk 0:00:13]} 46. Kh2 {[%clk 0:00:12]}  Ra2+ {[%clk 0:00:11]} 47. Kh1 {[%clk 0:00:10]}  Kf4 {[%clk 0:00:09]} 48. e6 {[%clk 0:00:00]}  g3 {[%clk 0:00:07]} 0-1


[Site "https://www.chess.com"]

[Event "Titled Tuesday Blitz May 9 Late 2023"]
[White "Lavrik, Dmitry"]
[Black "cryptoguru02"]
[WhiteFideId "24113190"]
[WhiteElo "2345"]
[BlackElo "2591"]
[Result "1-0"]
[Round "07"]
[TimeControl "180+2"]
[Date "2023.05.09"]
[WhiteClock "0:00:49"]
[BlackClock "0:00:00"]

1. c4 {[%clk 0:03:00]}  g6 {[%clk 0:02:57]} 2. g3 {[%clk 0:02:55]}  Bg7 {[%clk 0:02:57]} 3. Bg2 {[%clk 0:02:56]}  c5 {[%clk 0:02:58]} 4. Nf3 {[%clk 0:02:55]}  Nc6 {[%clk 0:02:58]} 5. Nc3 {[%clk 0:02:54]}  e6 {[%clk 0:02:58]} 6. d4 {[%clk 0:02:51]}  cxd4 {[%clk 0:02:31]} 7. Nb5 {[%clk 0:02:51]}  d5 {[%clk 0:02:25]} 8. cxd5 {[%clk 0:02:47]}  Qa5+ {[%clk 0:02:24]} 9. Bd2 {[%clk 0:02:45]}  Qxb5 {[%clk 0:02:24]} 10. dxc6 {[%clk 0:02:46]}  Qxc6 {[%clk 0:02:19]} 11. O-O {[%clk 0:02:44]}  Qd7 {[%clk 0:02:19]} 12. Bb4 {[%clk 0:01:50]}  Ne7 {[%clk 0:02:17]} 13. Rc1 {[%clk 0:01:50]}  Nc6 {[%clk 0:02:14]} 14. Ba3 {[%clk 0:01:50]}  e5 {[%clk 0:02:06]} 15. Ng5 {[%clk 0:01:40]}  Ne7 {[%clk 0:01:28]} 16. Qc2 {[%clk 0:01:21]}  O-O {[%clk 0:01:25]} 17. Qc7 {[%clk 0:01:21]}  Re8 {[%clk 0:01:24]} 18. Qxd7 {[%clk 0:01:11]}  Bxd7 {[%clk 0:01:23]} 19. Rc7 {[%clk 0:01:10]}  Rad8 {[%clk 0:01:18]} 20. Rxb7 {[%clk 0:01:11]}  a5 {[%clk 0:00:44]} 21. Rc1 {[%clk 0:01:06]}  Nf5 {[%clk 0:00:27]} 22. Rcc7 {[%clk 0:00:57]}  Be6 {[%clk 0:00:21]} 23. Nxf7 {[%clk 0:00:52]}  Bxf7 {[%clk 0:00:19]} 24. Rxf7 {[%clk 0:00:52]}  d3 {[%clk 0:00:15]} 25. exd3 {[%clk 0:00:51]}  Rxd3 {[%clk 0:00:15]} 26. Be4 {[%clk 0:00:52]}  Rd1+ {[%clk 0:00:15]} 27. Kg2 {[%clk 0:00:52]}  Bh6 {[%clk 0:00:13]} 28. Bc2 {[%clk 0:00:49]}  Rd2 {[%clk 0:00:12]} 29. Bb3 {[%clk 0:00:49]}  Nd4 {[%clk 0:00:00]} 30. Rg7+ {[%clk 0:00:49]} 1-0


[Site "https://www.chess.com"]

[Event "Titled Tuesday Blitz May 9 Late 2023"]
[White "Kucuksari, Kaan"]
[Black "Atanasov, Anthony"]
[WhiteFideId "6380166"]
[BlackFideId "2623897"]
[WhiteElo "2364"]
[BlackElo "2326"]
[Result "1-0"]
[Round "07"]
[TimeControl "180+2"]
[Date "2023.05.09"]
[WhiteClock "0:01:12"]
[BlackClock "0:00:07"]

1. e4 {[%clk 0:03:00]}  e5 {[%clk 0:02:58]} 2. Nf3 {[%clk 0:03:01]}  Nf6 {[%clk 0:02:58]} 3. Nc3 {[%clk 0:03:00]}  Nc6 {[%clk 0:02:58]} 4. Bc4 {[%clk 0:02:59]}  Nxe4 {[%clk 0:02:59]} 5. Bxf7+ {[%clk 0:02:59]}  Kxf7 {[%clk 0:02:58]} 6. Nxe4 {[%clk 0:02:58]}  d5 {[%clk 0:02:59]} 7. Ng3 {[%clk 0:02:57]}  e4 {[%clk 0:02:58]} 8. Ng1 {[%clk 0:02:58]}  h5 {[%clk 0:02:59]} 9. h4 {[%clk 0:02:53]}  Bg4 {[%clk 0:02:57]} 10. N1e2 {[%clk 0:02:52]}  Bd6 {[%clk 0:02:43]} 11. d4 {[%clk 0:02:52]}  Kg6 {[%clk 0:02:22]} 12. Bg5 {[%clk 0:02:51]}  Qd7 {[%clk 0:02:15]} 13. f3 {[%clk 0:02:40]}  exf3 {[%clk 0:01:50]} 14. gxf3 {[%clk 0:02:32]}  Bxg3+ {[%clk 0:01:36]} 15. Nxg3 {[%clk 0:02:32]}  Rae8+ {[%clk 0:01:37]} 16. Kf2 {[%clk 0:02:22]}  Bxf3 {[%clk 0:01:27]} 17. Kxf3 {[%clk 0:02:19]}  Qg4+ {[%clk 0:01:10]} 18. Kg2 {[%clk 0:02:18]}  Nxd4 {[%clk 0:01:08]} 19. Qd3+ {[%clk 0:02:18]}  Nf5 {[%clk 0:01:04]} 20. Qxf5+ {[%clk 0:02:12]}  Qxf5 {[%clk 0:01:04]} 21. Nxf5 {[%clk 0:02:13]}  Kxf5 {[%clk 0:01:04]} 22. Rhf1+ {[%clk 0:02:13]}  Kg6 {[%clk 0:01:04]} 23. Rad1 {[%clk 0:02:13]}  c6 {[%clk 0:01:03]} 24. Rd3 {[%clk 0:02:10]}  Re2+ {[%clk 0:01:01]} 25. Rf2 {[%clk 0:02:10]}  Rhe8 {[%clk 0:01:01]} 26. Ra3 {[%clk 0:02:05]}  a6 {[%clk 0:01:00]} 27. Rb3 {[%clk 0:02:05]}  b5 {[%clk 0:00:55]} 28. Rc3 {[%clk 0:02:06]}  Rxf2+ {[%clk 0:00:52]} 29. Kxf2 {[%clk 0:02:06]}  Re6 {[%clk 0:00:52]} 30. Re3 {[%clk 0:02:04]}  Kf5 {[%clk 0:00:48]} 31. Rxe6 {[%clk 0:01:59]}  Kxe6 {[%clk 0:00:49]} 32. b4 {[%clk 0:01:59]}  d4 {[%clk 0:00:44]} 33. Ke2 {[%clk 0:01:59]}  Kd5 {[%clk 0:00:39]} 34. Kd3 {[%clk 0:02:00]}  a5 {[%clk 0:00:33]} 35. bxa5 {[%clk 0:01:59]}  c5 {[%clk 0:00:34]} 36. a6 {[%clk 0:01:42]}  c4+ {[%clk 0:00:32]} 37. Ke2 {[%clk 0:01:40]}  Kc6 {[%clk 0:00:33]} 38. Kf3 {[%clk 0:01:39]}  Kb6 {[%clk 0:00:29]} 39. Ke4 {[%clk 0:01:40]}  Kxa6 {[%clk 0:00:27]} 40. Kxd4 {[%clk 0:01:40]}  Ka5 {[%clk 0:00:27]} 41. a3 {[%clk 0:01:28]}  Ka4 {[%clk 0:00:20]} 42. Be7 {[%clk 0:01:28]}  Ka5 {[%clk 0:00:19]} 43. Kc5 {[%clk 0:01:26]}  g6 {[%clk 0:00:12]} 44. Bd6 {[%clk 0:01:20]}  Ka4 {[%clk 0:00:09]} 45. Kb6 {[%clk 0:01:20]}  c3 {[%clk 0:00:10]} 46. Be7 {[%clk 0:01:14]}  g5 {[%clk 0:00:04]} 47. hxg5 {[%clk 0:01:13]}  h4 {[%clk 0:00:05]} 48. g6 {[%clk 0:01:14]}  h3 {[%clk 0:00:05]} 49. g7 {[%clk 0:01:14]}  h2 {[%clk 0:00:06]} 50. g8=Q {[%clk 0:01:13]}  h1=Q {[%clk 0:00:07]} 51. Qb3# {[%clk 0:01:12]} 1-0


[Site "https://www.chess.com"]